[Event "European Women-ch 2023"]
[Site "Petrovac"]
[Date "2023.03.19"]
[Round "2.26"]
[White "Abdulla, Khayala"]
[Black "Ivanovic, Tara"]
[Result "1-0"]
[ECO "C77"]
[WhiteElo "2221"]
[BlackElo "1472"]
[Annotator "TA"]
[PlyCount "55"]
[EventDate "2023.03.15"]
[EventType "swiss"]
[EventCountry "MNE"]
[SourceTitle "playchess.com"]
[Source "ChessBase"]
[SourceQuality "1"]
[TimeControl "40/5400+30:1800+30"]

{[%evp 13,55,33,35,9,18,-2,39,31,40,20,35,0,59,57,40,51,62,45,175,175,167,175,170,163,168,166,216,215,220,218,220,145,141,147,221,225,215,215,256,264,354,356,2341,2511]} 1. e4 {[%emt 0:00:14]} e5 {[%emt 0:00:07]} 2. Nf3 {[%emt 0:00:10]} Nc6 {[%emt 0:00:06]} 3. Bb5 {[%emt 0:00:30]} a6 {[%emt 0:00:08]} 4. Ba4 {[%emt 0:01:46]} Nf6 {[%emt 0:00:21]} 5. d3 {[%emt 0:00:04]} b5 {[%emt 0:00:16]} 6. Bb3 {[%emt 0:00:06]} Be7 {[%emt 0:01:08]} 7. a4 {[%emt 0:02:50]} Bb7 {[%emt 0:06:20]} 8. Nc3 {[%emt 0:02:16][%cal Bb1c3,Bc3e2,Be2g3,Bg3f5][%mdl 32] C77: Ruy Lopez: 3...a6 4 Ba4 Nf6, unusual lines.} b4 {[%emt 0:05:26]} 9. Ne2 {[%emt 0:01:52] [#]} a5 $146 {[%emt 0:03:12]} ({Predecessor:} 9... O-O 10. a5 d5 11. exd5 Nxd5 12. O-O Kh8 13. Re1 f5 14. Ng3 Qd6 15. Bd2 Rae8 {1-0 Fedoseev,V (2701)-Gledura,B (2652) Chess.com Rapid Wk12 Swiss 2022 (8)}) 10. Ng3 {[%emt 0:00:58] White is slightly better.} O-O {[%emt 0:02:39]} 11. Nf5 {[%emt 0:03:50]} (11. O-O {simplifies} d5 12. exd5 Nxd5 13. Re1) 11... d6 {[%emt 0:18:06]} 12. Bg5 {[%emt 0:03:51]} Re8 {[%emt 0:02:28]} (12... Rb8 $11) 13. Qd2 $14 {[%emt 0:05:54][%cal Of5g7]} Bf8 {[%emt 0:04:19]} 14. Bh4 {[%emt 0:01:55] Strongly threatening Qg5.} Bc8 $1 {[%emt 0:08:16]} 15. Bd5 {[%emt 0:15:35] White is much more active. The black rooks are badly placed.} Bxf5 {[%emt 0:05:56] This move loses the game for Black.} ({Better is} 15... Ra6 $14) 16. Bxc6 $18 {[%emt 0:02:47]} Bg6 {[%emt 0:00:28]} 17. Bxe8 {[%emt 0:01:50]} Qxe8 {[%emt 0:00:10]} 18. Bxf6 {[%emt 0:00:31]} gxf6 {[%emt 0:00:03]} 19. O-O {[%emt 0:00:16]} c6 {[%emt 0:02:49]} (19... f5 {was necessary.} 20. Nh4 f4) 20. Nh4 {[%emt 0:01:53]} d5 {[%emt 0:00:28]} 21. Qe2 {[%emt 0:02:01]} Qd7 {[%emt 0:02:48]} 22. exd5 {[%emt 0:03:00]} cxd5 {[%emt 0:00:03]} 23. f4 {[%emt 0:00:50]} Qa7+ {[%emt 0:01:25]} (23... exf4 $16 {is a better defense.} 24. Rxf4 Re8) 24. Kh1 {[%emt 0:00:32] f5 is the strong threat.} Qd4 {[%emt 0:01:03]} 25. Nxg6 {[%emt 0:08:54]} fxg6 {[%emt 0:00:03]} 26. fxe5 {[%emt 0:00:36]} fxe5 {[%emt 0:01:07]} 27. Qf3 {[%emt 0:00:46] [#] Threatens to win with Qf7+.} Qxb2 $2 {[%emt 0:01:29]} (27... Bg7 28. c3 bxc3 29. bxc3 Qc5 30. Qf7+ Kh8) 28. Qxd5+ {[%emt 0:00:09] Weighted Error Value: White=0.11 (very precise) /Black=0.35} 1-0

[Event "European Women-ch 2023"]
[Site "Petrovac"]
[Date "2023.03.19"]
[Round "2.27"]
[White "Chelushkina, Irina"]
[Black "Goriachkina, Oksana"]
[Result "1-0"]
[ECO "B11"]
[WhiteElo "2207"]
[BlackElo "1759"]
[Annotator "TA"]
[PlyCount "59"]
[EventDate "2023.03.15"]
[EventType "swiss"]
[EventCountry "MNE"]
[SourceTitle "playchess.com"]
[Source "ChessBase"]
[SourceQuality "1"]
[TimeControl "40/5400+30:1800+30"]

{[%evp 13,59,0,25,3,12,16,15,9,10,0,0,0,7,10,25,30,43,50,61,18,112,96,101,76,438,161,142,-43,-15,-105,206,172,403,387,363,371,735,748,731,691,1620,1612,1617,1558,1414,1398,29977,29978]} 1. e4 {[%emt 0:00:04]} c6 {[%emt 0:00:20]} 2. Nf3 {[%emt 0:00:23]} d5 {[%emt 0:00:07]} 3. Nc3 {[%emt 0:00:04]} Bg4 {[%emt 0:03:25]} 4. h3 {[%emt 0:00:35]} Bxf3 {[%emt 0:00:37]} 5. Qxf3 {[%emt 0:00:56]} e6 {[%emt 0:00:19]} 6. g3 {[%emt 0:02:44]} Nf6 {[%emt 0:03:18]} 7. Bg2 {[%emt 0:01:52]} Nbd7 {[%emt 0:04:28]} 8. exd5 {[%emt 0:03:48] B11: Caro-Kann: Two Knights Variation.} exd5 {[%emt 0:02:46]} 9. O-O {[%emt 0:00:49]} Be7 {[%emt 0:00:04] [#]} 10. Nd1 $146 {[%emt 0:06:37][%cal Bc3d1,Bd1e3,Be3f5,Bf5h6][%mdl 32] The position is equal.} ({Predecessor:} 10. d4 O-O 11. Bf4 Re8 12. Rfe1 Qb6 13. Qd3 Bb4 14. a3 Bxc3 15. Qxc3 Nf8 16. b3 {½-½ Muniz,R (2220)-Granara Barreto,S (2190) Montevideo George Williams 1st 2011 (5)}) 10... O-O {[%emt 0:00:50]} 11. Ne3 {[%emt 0:00:05]} Bc5 {[%emt 0:06:08]} 12. Nf5 {[%emt 0:03:51]} Re8 {[%emt 0:13:07]} 13. d4 {[%emt 0:00:28]} Bb6 {[%emt 0:00:16]} 14. Bg5 $1 {[%emt 0:01:15]} g6 {[%emt 0:09:38]} 15. Nh6+ {[%emt 0:06:50]} Kg7 {[%emt 0:00:14]} 16. c3 {[%emt 0:01:10]} Qc8 {[%emt 0:19:00]} (16... Qe7 $11 {keeps the balance.}) 17. h4 {[%emt 0:01:27]} Rf8 {[%emt 0:00:26]} 18. Bh3 {[%emt 0:03:14] Threatens to win with Bxf6+. White has more active pieces. This pair of bishops is nice.} (18. Qd3 {simplifies} Bd8 19. Rfe1 Ng8 20. Nxg8 Bxg5 21. hxg5 Kxg8 22. Re7) 18... Qc7 $2 {[%emt 0:06:17][%mdl 8192]} (18... Bd8 $16) 19. Rfe1 $2 {[%emt 0:03:53]} (19. Bxd7 {[%csl Gg5][%cal Rf3f6]} Ne4 20. Bh3) 19... Ne4 $18 {[%emt 0:20:50]} 20. Be7 {[%emt 0:16:29] Against Ndf6} (20. Bf4 $16 Qd8 21. Bxd7 Qxd7 22. Ng4) 20... f5 {[%emt 0:06:36]} 21. Bg5 {[%emt 0:10:16]} (21. Bxf5 $1 $11 gxf5 22. Nxf5+ Kh8 23. Rxe4 (23. Bxf8 Rxf8 24. Rxe4 dxe4 $15) 23... dxe4 24. Qxe4) 21... Nxg5 $4 {[%emt 0:01:19][%mdl 8192]} (21... Rae8 $17) 22. hxg5 {[%emt 0:00:02] And now Re7+ would win.} Qd8 {[%emt 0:00:10] [#] Repels Re7+} (22... Rae8 {keeps fighting.}) 23. Qf4 $1 {[%emt 0:03:35]} Bc7 {[%emt 0:00:49] [#]} 24. Qh4 {[%emt 0:00:01]} Nb6 $2 {[%emt 0:00:52]} (24... Re8 25. Bxf5 (25. Nf7 Rxe1+ 26. Rxe1 Qf8 $11) 25... Nf8) 25. Re6 {[%emt 0:01:12] Strongly threatening Rae1.} Qd7 {[%emt 0:00:29]} 26. Rae1 {[%emt 0:00:13] Re7+ is the strong threat.} Rae8 {[%emt 0:00:22] [#] Against Re7+} 27. Nxf5+ $1 {[%emt 0:03:26][%mdl 576] Clearance} gxf5 {[%emt 0:00:35]} 28. Qh6+ {[%emt 0:01:48]} Kg8 {[%emt 0:00:00] [#]} 29. Bxf5 $1 {[%emt 0:00:24][%mdl 576] White threatens g6 and mate. Deflection} Qf7 {[%emt 0:01:06]} (29... Bd8 30. g6) 30. g6 {[%emt 0:02:47] An entertaining game by Chelushkina.   Weighted Error Value: White=0.45/Black=0.98} 1-0

[Event "European Women-ch 2023"]
[Site "Petrovac"]
[Date "2023.03.19"]
[Round "2.28"]
[White "Efroimski, Marsel"]
[Black "Pirvulescu, Ekaterina"]
[Result "1-0"]
[ECO "B48"]
[WhiteElo "2451"]
[BlackElo "2032"]
[Annotator "TA"]
[PlyCount "129"]
[EventDate "2023.03.15"]
[EventType "swiss"]
[EventCountry "MNE"]
[SourceTitle "playchess.com"]
[Source "ChessBase"]
[SourceQuality "1"]
[TimeControl "40/5400+30:1800+30"]

{[%evp 11,129,37,48,23,15,21,31,22,26,22,30,30,23,26,32,35,22,0,0,0,0,-22,-31,-29,0,-25,-33,-35,-15,-21,-12,-40,-17,-16,0,0,0,0,0,0,0,0,0,-37,-38,-40,-21,-80,-50,-54,-39,-62,-70,-61,-44,-56,-8,-49,26,31,28,0,8,0,0,14,12,0,0,0,0,-50,-45,-101,-97,-105,-73,-74,-76,-175,-177,-1238,-1235,-782,-8,-15,-15,-20,0,0,0,0,0,0,-8,-8,-22,-22,0,0,21,21,21,28,458,447,440,394,335,349,337,192,1158,556,29960,4622,29985,29986,29989,29990]} 1. e4 {[%emt 0:00:02]} c5 {[%emt 0:00:13]} 2. Nf3 {[%emt 0:00:03]} e6 {[%emt 0:00:12]} 3. d4 {[%emt 0:00:03]} cxd4 {[%emt 0:00:08]} 4. Nxd4 {[%emt 0:00:01]} Nc6 {[%emt 0:00:14]} 5. Nc3 {[%emt 0:00:04]} Qc7 {[%emt 0:00:10]} 6. Be3 {[%emt 0:00:05]} a6 {[%emt 0:00:08]} 7. Qf3 {[%emt 0:00:05] 7.g4 is the modern continuation. B48: Sicilian: Taimanov: 5 Nc3 Qc7 6 Be3 a6 without Be2.} Bd6 {[%emt 0:01:14]} 8. O-O-O {[%emt 0:00:48]} Be5 $1 {[%emt 0:00:36]} 9. Nxc6 {[%emt 0:00:04] White is slightly better.} bxc6 {[%emt 0:00:47]} 10. Bd4 {[%emt 0:00:06]} Bxd4 {[%emt 0:00:27]} 11. Rxd4 {[%emt 0:00:07]} d5 {[%emt 0:03:15]} 12. Qg3 {[%emt 0:06:22]} Qxg3 {[%emt 0:02:58]} 13. hxg3 {[%emt 0:00:03]} Nf6 {[%emt 0:18:21]} 14. e5 {[%emt 0:01:56]} Nd7 {[%emt 0:00:13]} 15. f4 {[%emt 0:00:09]} h6 {[%emt 0:03:00] [#]} 16. g4 $146 {[%emt 0:01:00]} ({Predecessor:} 16. Be2 Ke7 17. Bf3 a5 18. Re1 Ba6 19. Rdd1 h5 20. Rh1 g6 21. Rh2 Rab8 22. Rdh1 {0-1 Halkias,S (2556)-Chigaev,M (2639) Titled Tuesday intern op 14th Sept blitz 2021 (10)}) 16... Rg8 {[%emt 0:00:42]} 17. Be2 {[%emt 0:05:00]} c5 {[%emt 0:07:25]} 18. Rdd1 {[%emt 0:19:21]} Bb7 {[%emt 0:03:43]} 19. Bf3 {[%emt 0:00:06]} Ke7 {[%emt 0:02:33]} 20. Ne2 {[%emt 0:04:50]} Rab8 {[%emt 0:02:57]} 21. Rde1 {[%emt 0:03:08]} Ba8 {[%emt 0:03:03]} 22. Ng3 {[%emt 0:00:32]} Rb4 {[%emt 0:02:00]} 23. f5 {[%emt 0:01:35]} Rgb8 {[%emt 0:05:09]} 24. b3 {[%emt 0:00:58]} a5 {[%emt 0:04:32]} 25. Nh5 {[%emt 0:01:43]} Rg8 {[%emt 0:04:38]} 26. Rhf1 {[%emt 0:04:17][%cal Oh5g7]} g6 {[%emt 0:13:56]} 27. fxe6 {[%emt 0:16:09]} fxe6 {[%emt 0:02:48]} ({Don't play} 27... Kxe6 28. a3 gxh5 29. axb4 hxg4 30. Be2 axb4 31. Rh1 $14) 28. c3 {[%emt 0:06:33]} Rbb8 {[%emt 0:04:47]} 29. Nf4 {[%emt 0:00:15]} (29. Nf6 $1 $11 {keeps the balance.} Nxf6 30. exf6+ Kf7 31. Rf2) 29... Rbf8 {[%emt 0:01:34]} 30. Nd3 {[%emt 0:01:07]} c4 {[%emt 0:06:25]} 31. Nf2 {[%emt 0:06:20]} cxb3 {[%emt 0:02:12]} 32. axb3 {[%emt 0:00:01]} Rb8 {[%emt 0:01:22]} 33. Kc2 {[%emt 0:00:22]} Nc5 {[%emt 0:01:07]} (33... Bc6 $15 {might be stronger.} 34. Ra1 Ra8) 34. Rb1 {[%emt 0:00:25]} (34. Rh1 $5) 34... Rb6 {[%emt 0:03:31]} (34... Bc6 $15 35. Nd3 Nd7) 35. Rh1 $11 {[%emt 0:01:47]} Rh8 {[%emt 0:00:32]} 36. Rh3 {[%emt 0:04:25]} Kf7 {[%emt 0:00:25]} 37. Nd3 {[%emt 0:01:32]} Nxd3 {[%emt 0:00:11]} 38. Kxd3 {[%emt 0:00:01]} Kg7 {[%emt 0:00:20] Prevents g5.} 39. Kc2 {[%emt 0:05:42]} Bc6 {[%emt 0:00:32]} 40. Be2 {[%emt 0:00:00]} g5 {[%emt 0:00:00]} 41. Bd3 {[%emt 0:10:32]} (41. Rf1 $11) 41... d4 $1 $15 {[%emt 0:05:37][%mdl 64] Discovered Attack} 42. cxd4 {[%emt 0:12:50]} (42. Ra1 $15) 42... Bxg2 $17 {[%emt 0:00:51]} 43. Rg3 {[%emt 0:00:11]} Rc8+ {[%emt 0:03:50]} 44. Kd2 {[%emt 0:00:59]} Bd5 {[%emt 0:00:42][%cal Ob6b4]} 45. Ra1 {[%emt 0:02:38]} (45. Be2 $17) 45... Rxb3 $19 {[%emt 0:02:25] Hoping for ...Rb2+.} 46. Rxa5 $2 {[%emt 0:00:02]} (46. Rgg1) 46... Rb2+ $1 {[%emt 0:02:13]} 47. Ke3 {[%emt 0:00:07] [#]} Rc3 $2 {[%emt 0:02:37]} (47... Rc1 $1 $19 {[%cal Rc1e1] ( -> ...Re1+)} 48. Ba6 h5 49. gxh5 Rc3+ {[%mdl 64] Skewer} 50. Bd3 Rxd3+ 51. Kxd3 Rb3+ {[%mdl 64] Skewer} 52. Kd2 Rxg3) 48. Rc5 {[%emt 0:00:54]} Ra3 {[%emt 0:04:18] And now ...Rbb3 would win.} 49. Rc7+ {[%emt 0:00:48]} Kg8 {[%emt 0:00:38]} (49... Kf8 $5 {[%cal Rb2b3]} 50. Rg1 Rbb3 $15) 50. Rg1 {[%emt 0:04:42]} ({Much weaker is} 50. Rc8+ Kf7 51. Rg1 Rbb3 $15) 50... Rbb3 {[%emt 0:01:04]} (50... Bb7 $5 51. Rgc1 $8 Rbb3 $11) 51. Rd1 {[%emt 0:02:45]} Bb7 {[%emt 0:01:19] Threatens to win with ...Ba6.} 52. Rc2 $1 {[%emt 0:00:19]} Ba6 {[%emt 0:01:57][%cal Ra6d3]} 53. Rcd2 {[%emt 0:00:05]} Kg7 {[%emt 0:00:38]} 54. Ke2 $1 {[%emt 0:01:41]} Bxd3+ {[%emt 0:01:27]} (54... Bb7 $5) 55. Rxd3 {[%emt 0:00:04]} Kg6 {[%emt 0:02:44]} 56. Rxb3 {[%emt 0:00:47]} Rxb3 $11 {[%emt 0:00:04][%mdl 4096] Endgame KR-KR} 57. Rf1 {[%emt 0:00:42] Rf6+ is the strong threat.} Rg3 $2 {[%emt 0:02:57][%mdl 8192]} (57... Rb2+ $11 {and Black stays safe.} 58. Kd3 Kg7) 58. Rf6+ $18 {[%emt 0:00:05]} Kg7 {[%emt 0:00:03]} 59. Rxe6 {[%emt 0:00:05] Strongly threatening d5.} Rxg4 {[%emt 0:00:19] [#]} 60. d5 {[%emt 0:00:08]} Rd4 {[%emt 0:03:24]} 61. d6 {[%emt 0:00:21]} (61. Re7+ $142 Kf8 62. d6) 61... h5 $2 {[%emt 0:00:31]} (61... g4 62. Re7+ Kf8) 62. Re7+ {[%emt 0:01:33]} (62. Ke3 $142 Rd1 63. Re7+ Kf8 64. Rh7) 62... Kg6 {[%emt 0:01:09]} 63. d7 {[%emt 0:03:01] White threatens Re6+ and mate.} h4 {[%emt 0:00:10]} 64. Re6+ {[%emt 0:00:46]} Kf7 {[%emt 0:00:59]} 65. Rd6 {[%emt 0:00:10] Never resign too early!   Weighted Error Value: White=0.30/Black=0.44} 1-0